bitfinex-derivatives/quotes_BTCF0:USTF0_20241005
["timestamp","ask_amount","ask_price","bid_price","bid_amount"]
[1728154212389,0.1114,61899.0,61897.0,0.15032797]
[1728154212803,0.0004,61898.0,61897.0,0.15032797]
[1728154213702,0.0004,61898.0,61897.0,0.15232797]
[1728154214200,0.0004,61898.0,61897.0,0.15032797]
[1728154214392,0.0014,61898.0,61897.0,0.15232797]
[1728154215293,0.05098606,61898.0,61897.0,0.15232797]
[1728154216194,0.05198606,61898.0,61897.0,1.59780797]
[1728154216394,0.0024,61898.0,61897.0,1.59780797]
[1728154217200,0.0004,61899.0,61898.0,0.056541]
[1728154217508,0.0004,61899.0,61898.0,0.541621]
[1728154217697,0.0004,61899.0,61898.0,1.141621]
[1728154218804,0.0014,61899.0,61898.0,1.141621]
[1728154218994,0.0024,61899.0,61898.0,0.544621]
[1728154219303,0.0024,61899.0,61898.0,1.144621]
[1728154219504,0.0004,61904.0,61903.0,0.056537]
[1728154219713,0.0004,61904.0,61903.0,0.166537]
[1728154219909,0.0004,61904.0,61903.0,1.251577]
[1728154221310,0.0014,61904.0,61903.0,1.251577]
[1728154222909,0.0014,61904.0,61903.0,1.255577]
[1728154223710,0.0024,61904.0,61903.0,1.256577]
[1728154224100,0.0014,61904.0,61903.0,1.256577]
[1728154224307,0.0024,61904.0,61903.0,1.623377]
[1728154224709,0.07314893,61904.0,61903.0,1.41805084]
[1728154225611,0.07314893,61904.0,61903.0,1.47458784]
[1728154225612,0.12272331,61904.0,61903.0,1.47458784]
[1728154226908,0.12272331,61904.0,61903.0,1.05237882]
[1728154228308,0.12272331,61904.0,61903.0,1.65237882]
[1728154228514,0.12272331,61904.0,61903.0,1.05237882]
[1728154229604,0.12272331,61904.0,61903.0,1.29157882]
[1728154229811,0.12272331,61904.0,61903.0,0.69157882]
[1728154230214,0.12272331,61904.0,61903.0,1.29157882]
[1728154230806,0.12272331,61904.0,61903.0,0.69157882]
[1728154231011,0.20992321,61904.0,61903.0,0.20693882]
[1728154231209,0.2990485,61904.0,61903.0,0.20693882]
[1728154231708,0.0024,61904.0,61903.0,0.20693882]
[1728154232117,0.0024,61904.0,61903.0,1.29157882]
[1728154233705,0.0024,61904.0,61903.0,0.69157882]
[1728154234314,0.0024,61904.0,61903.0,0.20693882]
[1728154235022,0.0024,61904.0,61903.0,0.69157882]
[1728154235818,0.0024,61904.0,61903.0,0.20693882]
[1728154237914,0.0024,61904.0,61903.0,0.56773882]
[1728154239622,0.12272741,61904.0,61903.0,0.417337]
[1728154239923,0.12272741,61904.0,61903.0,0.49994179]
[1728154240821,0.12272741,61904.0,61903.0,0.13914179]
[1728154241025,0.12272741,61904.0,61903.0,0.49994179]
[1728154241416,0.12272683,61904.0,61903.0,0.49994179]
[1728154242013,0.12272683,61904.0,61903.0,0.52846215]
[1728154243131,0.0004,61909.0,61908.0,0.056532]
[1728154243420,0.0004,61909.0,61908.0,0.166932]
[1728154244816,0.0014,61909.0,61908.0,0.166932]
[1728154247633,0.0014,61909.0,61908.0,0.056932]
[1728154247825,0.0014,61909.0,61908.0,0.166932]
[1728154249422,0.17919098,61909.0,61908.0,0.1104]
[1728154249733,0.17919098,61909.0,61908.0,0.166932]
[1728154257335,0.056532,61908.0,61904.0,0.056535]
[1728154257528,0.23432298,61908.0,61906.0,0.166533]
[1728154259232,0.23432298,61908.0,61907.0,0.056533]
[1728154259541,0.17779098,61908.0,61907.0,0.056533]
[1728154260136,0.20899182,61908.0,61907.0,0.056533]
[1728154260531,0.20899182,61908.0,61907.0,0.057533]
[1728154261441,0.17779098,61908.0,61907.0,0.057533]
[1728154261940,0.50738148,61908.0,61906.0,0.01933072]
[1728154262241,0.17866652,61907.0,61906.0,0.01933072]
[1728154262633,0.29852505,61907.0,61906.0,0.01933072]
[1728154263037,0.51612157,61907.0,61906.0,0.02033072]
[1728154263432,0.51612335,61907.0,61906.0,0.02033072]
[1728154264242,0.35505983,61907.0,61906.0,0.02033072]
[1728154264630,0.41299307,61907.0,61906.0,0.02033072]
[1728154264835,0.35646007,61907.0,61906.0,0.07686472]
[1728154265233,0.29852683,61907.0,61906.0,0.07686472]
[1728154266335,0.35505983,61907.0,61906.0,0.07686472]
[1728154266537,0.41299307,61907.0,61906.0,0.07686472]
[1728154267145,0.35646007,61907.0,61906.0,0.07686472]
[1728154267741,0.29852683,61907.0,61906.0,0.07686472]
[1728154269543,0.29852683,61907.0,61906.0,0.02033072]
[1728154269743,0.23472398,61907.0,61902.0,0.04845782]
[1728154269948,0.23472398,61907.0,61904.0,0.11]
[1728154270546,0.17819098,61907.0,61905.0,0.056535]
[1728154270952,0.17919098,61907.0,61905.0,0.056535]
[1728154271637,0.17819098,61907.0,61905.0,0.056535]
[1728154272441,0.17919098,61907.0,61905.0,0.056535]
[1728154273041,0.056534,61906.0,61904.0,0.15845782]
[1728154273250,0.0004,61905.0,61904.0,0.11]
[1728154273638,0.17819098,61905.0,61904.0,0.04845782]
[1728154273845,0.17819098,61905.0,61900.0,0.0113]
[1728154274141,0.05654,61899.0,61897.0,0.04845782]
[1728154274339,0.05694,61899.0,61897.0,0.04845782]
[1728154274538,0.05694,61899.0,61896.0,0.15845782]
[1728154274539,0.23473098,61899.0,61896.0,0.15845782]
[1728154274948,0.23473098,61899.0,61896.0,0.11]
[1728154275341,0.34473098,61899.0,61895.0,0.04845782]
[1728154275744,0.34473098,61899.0,61894.0,0.42016825]
[1728154275958,0.34473098,61899.0,61894.0,0.42100825]
[1728154276455,0.34473098,61899.0,61894.0,0.06020825]
[1728154276644,0.34573098,61899.0,61894.0,0.05936825]
[1728154276959,0.34673098,61899.0,61895.0,0.11]
[1728154277146,0.43588087,61899.0,61895.0,0.11]
[1728154277352,0.52503076,61899.0,61895.0,0.11]
[1728154278256,0.46849076,61899.0,61894.0,0.03285908]
[1728154278464,0.0004,61895.0,61894.0,0.14285908]
[1728154278959,0.23473498,61895.0,61894.0,0.14285908]
[1728154279760,0.23573498,61895.0,61894.0,0.14285908]
[1728154280859,0.18019098,61895.0,61892.0,0.11]
[1728154281159,0.0004,61893.0,61892.0,0.166547]
[1728154281553,0.17819098,61893.0,61892.0,0.166547]
[1728154282463,0.23473698,61893.0,61892.0,0.166547]
[1728154282851,0.23573698,61893.0,61892.0,0.166547]
[1728154283150,0.23573698,61893.0,61891.0,0.0004]
[1728154283151,0.056547,61892.0,61891.0,0.0004]
[1728154283556,0.23473798,61892.0,61891.0,0.0004]
[1728154284147,0.28432989,61892.0,61891.0,0.0004]
[1728154284353,0.34473798,61892.0,61891.0,0.0004]
[1728154284857,0.34573798,61892.0,61891.0,0.0004]
[1728154285460,0.34673798,61892.0,61891.0,0.0004]
[1728154287055,0.23673798,61892.0,61891.0,0.0004]
[1728154288863,0.34673798,61892.0,61891.0,0.0004]
[1728154299465,0.46710544,61892.0,61891.0,0.0004]
[1728154299766,0.35710544,61892.0,61891.0,0.1104]
[1728154299969,0.30055844,61892.0,61891.0,0.166948]
[1728154300166,0.46123575,61892.0,61891.0,0.166948]
[1728154300561,0.30055844,61892.0,61891.0,0.166948]
[1728154300965,0.46127674,61892.0,61891.0,0.166948]
[1728154301568,0.30055844,61892.0,61891.0,0.166948]
[1728154301963,0.12276746,61892.0,61891.0,0.166948]
[1728154302166,0.07286746,61892.0,61891.0,0.166948]
[1728154302471,0.16078341,61892.0,61891.0,0.166948]
[1728154302688,0.0004,61893.0,61892.0,0.056547]
[1728154302970,0.04999143,61893.0,61892.0,0.088347]
[1728154303365,0.10793863,61893.0,61892.0,0.088347]
[1728154304488,0.10893863,61893.0,61892.0,0.088347]
[1728154304862,0.10993863,61893.0,61892.0,0.088347]
[1728154305473,0.05199143,61893.0,61892.0,0.088347]
[1728154305685,0.05199143,61893.0,61892.0,0.119247]
[1728154306375,0.0024,61893.0,61892.0,0.119247]
[1728154306575,0.0024,61893.0,61892.0,0.14817457]
[1728154311981,0.0024,61893.0,61892.0,0.22879072]
[1728154312179,0.0024,61893.0,61892.0,0.14817457]
[1728154312477,0.0024,61893.0,61892.0,0.63289457]
[1728154312674,0.0024,61893.0,61892.0,0.75601181]
[1728154312870,0.0004,61895.0,61894.0,0.056545]
[1728154313180,0.0004,61895.0,61894.0,0.29006224]
[1728154313678,0.0004,61895.0,61894.0,0.74760162]
[1728154313872,0.0004,61895.0,61894.0,0.65086224]
[1728154314177,0.0004,61895.0,61894.0,0.7477571]
[1728154314178,0.0014,61895.0,61894.0,0.7477571]
[1728154314384,0.0014,61895.0,61894.0,0.527745]
[1728154314385,0.07216243,61895.0,61894.0,0.527745]
[1728154315486,0.07316243,61895.0,61894.0,0.529745]
[1728154315675,0.07316243,61895.0,61894.0,0.168945]
[1728154316574,0.14734152,61895.0,61894.0,0.168945]
[1728154316777,0.07316243,61895.0,61894.0,0.168945]
[1728154318485,0.0731637,61895.0,61894.0,0.168945]
[1728154319584,0.14734152,61895.0,61894.0,0.168945]
[1728154319782,0.04195917,61895.0,61894.0,0.168945]
[1728154319978,0.14716401,61895.0,61894.0,0.168945]
[1728154320178,0.26751248,61895.0,61894.0,0.168945]
[1728154320487,0.12274847,61895.0,61894.0,0.168945]
[1728154320868,0.0024,61895.0,61894.0,0.168945]
[1728154321082,0.0731637,61895.0,61894.0,0.168945]
[1728154321589,0.0024,61895.0,61894.0,0.37277685]
[1728154322374,0.0024,61895.0,61894.0,0.37277804]
[1728154322887,0.0024,61895.0,61894.0,0.29205071]
[1728154326678,0.0024,61895.0,61894.0,0.29204523]
[1728154329584,0.16340135,61895.0,61894.0,0.168945]
[1728154329981,0.19460528,61895.0,61894.0,0.168945]
[1728154330183,0.28374747,61895.0,61894.0,0.168945]
[1728154331178,0.28374747,61895.0,61894.0,0.058945]
[1728154331485,0.28374765,61895.0,61894.0,0.168945]
[1728154331674,0.1227463,61895.0,61894.0,0.168945]
[1728154336576,0.0024,61895.0,61894.0,0.29204883]
[1728154337990,0.0024,61895.0,61894.0,0.65284883]
[1728154338390,0.0024,61895.0,61894.0,0.54284883]
[1728154338584,0.0024,61895.0,61894.0,0.65284883]
[1728154338994,0.0024,61895.0,61894.0,0.29204883]
[1728154339189,0.0024,61895.0,61894.0,0.65284883]
[1728154341497,0.0024,61895.0,61894.0,0.65284803]
[1728154342497,0.0024,61895.0,61894.0,0.74974289]
[1728154343791,0.0024,61895.0,61894.0,0.65284803]
[1728154344193,0.0024,61895.0,61894.0,0.74981362]
[1728154344394,0.0024,61895.0,61894.0,0.65284803]
[1728154344996,0.0024,61895.0,61894.0,0.65284832]
[1728154346203,0.0024,61895.0,61894.0,0.65284843]
[1728154349789,0.0024,61895.0,61894.0,0.80110143]
[1728154349990,0.0024,61895.0,61894.0,0.65284843]
[1728154351088,0.0024,61895.0,61894.0,0.80109128]
[1728154351405,0.0024,61895.0,61894.0,0.65284973]
[1728154351596,0.0024,61895.0,61894.0,0.529745]
[1728154351597,0.04195903,61895.0,61894.0,0.529745]
[1728154351796,0.03360433,61895.0,61894.0,0.529745]
[1728154352000,0.04195903,61895.0,61894.0,0.529745]
[1728154352194,0.07316336,61895.0,61894.0,0.419745]
[1728154352388,0.07316336,61895.0,61894.0,0.529745]
[1728154359495,0.03360433,61895.0,61894.0,0.529745]
[1728154359698,0.056542,61898.0,61895.0,0.056543]
[1728154359699,0.17779098,61898.0,61895.0,0.056543]
[1728154359899,0.17779098,61898.0,61894.0,0.74455573]
[1728154359900,0.17779098,61898.0,61897.0,0.0004]
[1728154360202,0.17779098,61898.0,61897.0,0.27175573]
[1728154360203,0.23433298,61898.0,61897.0,0.27175573]
[1728154360805,0.23533298,61898.0,61897.0,0.27142239]
[1728154361203,0.17979098,61898.0,61897.0,0.27242239]
[1728154362404,0.17979098,61898.0,61897.0,0.27542239]
[1728154363201,0.17979098,61898.0,61897.0,0.33196439]
[1728154365703,0.17979098,61898.0,61897.0,0.33188476]
[1728154366702,0.25055642,61898.0,61897.0,0.060942]
[1728154368108,0.21099628,61898.0,61897.0,0.060942]
[1728154369508,0.25055642,61898.0,61897.0,0.060942]
[1728154370609,0.21099628,61898.0,61897.0,0.060942]
[1728154371116,0.25055651,61898.0,61897.0,0.060942]
[1728154372215,0.21099628,61898.0,61897.0,0.060942]
[1728154374616,0.17979098,61898.0,61897.0,0.33175546]
[1728154378022,0.34633198,61898.0,61897.0,0.27521346]
[1728154379923,0.23633198,61898.0,61897.0,0.27521346]
[1728154380113,0.34633198,61898.0,61897.0,0.27521346]
[1728154380314,0.34633198,61898.0,61897.0,0.27529052]
[1728154381624,0.34633198,61898.0,61897.0,0.12750778]
[1728154385928,0.34633198,61898.0,61897.0,0.20829985]
[1728154386128,1.43101198,61898.0,61897.0,0.0044]
[1728154386325,0.056546,61893.0,61892.0,0.0004]
[1728154386519,0.056946,61893.0,61892.0,0.1235216]
[1728154386823,0.541666,61893.0,61892.0,0.1235216]
[1728154387225,0.574566,61893.0,61892.0,0.0004]
[1728154387429,0.575566,61893.0,61892.0,0.0034]
[1728154387831,1.176566,61893.0,61892.0,0.0054]
[1728154388324,1.537366,61893.0,61892.0,0.0699958]
[1728154388524,1.537366,61893.0,61892.0,0.0054]
[1728154388718,1.537366,61893.0,61892.0,0.05384846]
[1728154389327,1.647366,61893.0,61892.0,0.0054]
[1728154389736,1.82569519,61893.0,61892.0,0.0054]
[1728154389927,1.85436807,61893.0,61892.0,0.0054]
[1728154391117,2.03145899,61893.0,61892.0,0.0054]
[1728154391323,1.97350617,61893.0,61892.0,0.0054]
[1728154391520,1.79641525,61893.0,61892.0,0.0054]
[1728154391722,1.43561525,61893.0,61892.0,0.0054]
[1728154391924,1.79641525,61893.0,61892.0,0.0054]
[1728154393320,1.79641311,61893.0,61892.0,0.0054]
[1728154395330,1.95729382,61893.0,61892.0,0.0054]
[1728154396438,1.79641311,61893.0,61892.0,0.0054]
[1728154396635,1.07603888,61893.0,61892.0,0.0699958]
[1728154397632,1.07603888,61893.0,61892.0,0.0054]
[1728154397837,1.07603888,61893.0,61892.0,0.0699958]
[1728154398039,0.59131888,61893.0,61892.0,0.0699958]
[1728154399039,0.59131888,61893.0,61892.0,0.06989922]
[1728154399441,0.59131888,61893.0,61892.0,0.0054]
[1728154404635,0.67126534,61893.0,61892.0,0.0054]
[1728154404841,0.79992502,61893.0,61892.0,0.0054]
[1728154405043,0.60168764,61893.0,61892.0,0.0054]
[1728154405344,0.85647102,61893.0,61892.0,0.0054]
[1728154405550,0.66209453,61893.0,61892.0,0.0054]
[1728154406337,0.056551,61887.0,61886.0,0.0113]
[1728154406535,0.056551,61887.0,61879.0,0.00242397]
[1728154406536,0.056556,61883.0,61881.0,0.056557]
[1728154406736,0.12773165,61882.0,61881.0,0.056557]
[1728154407750,0.1277419,61882.0,61881.0,0.056557]
[1728154408936,0.1287419,61882.0,61881.0,0.056557]
[1728154409844,0.1297419,61882.0,61881.0,0.056557]
[1728154411835,0.08861839,61882.0,61881.0,0.056557]
[1728154415748,0.058956,61882.0,61881.0,0.166557]
[1728154417244,0.058956,61882.0,61881.0,0.11]
[1728154417837,0.058956,61882.0,61881.0,0.37036776]
[1728154418258,0.058956,61882.0,61881.0,0.28964361]
[1728154419849,0.12974065,61882.0,61881.0,0.166557]
[1728154422351,0.09016977,61882.0,61881.0,0.166557]
[1728154422552,0.12974065,61882.0,61881.0,0.166557]
[1728154424156,0.12974065,61882.0,61881.0,0.056557]
[1728154426259,0.12974065,61882.0,61880.0,0.061]
[1728154426260,0.056557,61881.0,61880.0,0.061]
[1728154426455,0.12774165,61881.0,61880.0,0.061]
[1728154426763,0.00035859,61881.0,61880.0,0.33081115]
[1728154427150,0.00035859,61881.0,61880.0,0.18409118]
[1728154427664,0.05891559,61881.0,61880.0,0.18409118]
[1728154427850,0.05891559,61881.0,61880.0,0.28096937]
[1728154429663,0.05891559,61881.0,61880.0,0.18409118]
[1728154432266,0.05891559,61881.0,61880.0,0.33038159]
[1728154433160,0.05891559,61881.0,61880.0,0.33039991]
[1728154437069,0.05891559,61881.0,61880.0,0.32992069]
[1728154437866,0.05891559,61881.0,61880.0,0.26892069]
[1728154438967,0.05791559,61881.0,61880.0,0.26892069]
[1728154439166,0.05891559,61881.0,61880.0,0.26892069]
[1728154442071,0.0901296,61881.0,61879.0,0.00242397]
[1728154442273,0.03161401,61880.0,61879.0,0.00242397]
[1728154444278,0.03261401,61880.0,61879.0,0.00242397]
[1728154445179,0.03361401,61880.0,61879.0,0.00242397]
[1728154448276,0.09017201,61880.0,61879.0,0.00242397]
[1728154448775,0.1297432,61880.0,61879.0,0.00242397]
[1728154449979,0.00035859,61881.0,61879.0,0.27126904]
[1728154450181,0.00035859,61881.0,61880.0,0.26884487]
[1728154450677,0.00035859,61881.0,61880.0,0.26924487]
[1728154450878,0.05691559,61881.0,61880.0,0.26924487]
[1728154451485,0.05791559,61881.0,61880.0,0.26924487]
[1728154452369,0.05891559,61881.0,61880.0,0.26924487]
[1728154454482,0.05891559,61881.0,61880.0,0.12305035]
[1728154455076,0.05891559,61881.0,61880.0,0.26877709]
[1728154456986,0.09848611,61881.0,61880.0,0.0004]
[1728154457485,0.17929856,61881.0,61880.0,0.0004]
[1728154459091,0.32424217,61881.0,61880.0,0.0004]
[1728154459277,0.12274156,61881.0,61880.0,0.056958]
[1728154459476,0.1632393,61881.0,61880.0,0.056958]
[1728154459690,0.12274156,61881.0,61880.0,0.056958]
[1728154461580,0.12274156,61881.0,61880.0,0.166958]
[1728154461781,0.00235859,61881.0,61880.0,0.166958]
[1728154462083,0.14744702,61881.0,61880.0,0.166958]
[1728154462284,0.26782287,61881.0,61880.0,0.166958]
[1728154464080,0.00235859,61881.0,61880.0,0.43468814]
[1728154464799,0.00235859,61881.0,61880.0,0.43466961]
[1728154469784,0.00235859,61881.0,61880.0,0.43448844]
[1728154472090,0.00235859,61881.0,61880.0,0.28900869]
[1728154474082,0.00235859,61881.0,61880.0,0.36977224]
[1728154474683,0.00235859,61881.0,61880.0,0.36948363]
[1728154477082,0.00235859,61881.0,61880.0,0.25948363]
[1728154477287,0.00235859,61881.0,61880.0,0.13772155]
[1728154477491,0.00235859,61881.0,61880.0,0.056958]
[1728154478992,0.12274065,61881.0,61880.0,0.056958]
[1728154479791,0.17929765,61881.0,61880.0,0.0004]
[1728154480500,0.35638857,61881.0,61880.0,0.0004]
[1728154481011,0.51754554,61881.0,61880.0,0.0004]
[1728154481200,0.34045462,61881.0,61880.0,0.0004]
[1728154481696,0.17929765,61881.0,61880.0,0.0004]
[1728154483299,0.34046066,61881.0,61880.0,0.0004]
[1728154484099,0.20969765,61881.0,61880.0,0.0004]
[1728154486498,0.12274065,61881.0,61880.0,0.1104]
[1728154487199,0.00235859,61881.0,61880.0,0.32932335]
[1728154488903,0.00235859,61881.0,61880.0,0.32931934]
[1728154489203,0.00235859,61881.0,61880.0,0.32928728]
[1728154491005,0.00235859,61881.0,61880.0,0.23236558]
[1728154491914,0.00235859,61881.0,61880.0,0.32928345]
[1728154494096,0.00235859,61881.0,61880.0,0.1104]
[1728154494296,0.07314274,61881.0,61880.0,0.1104]
[1728154494702,0.12274179,61881.0,61880.0,0.1104]
[1728154494904,0.12274127,61881.0,61880.0,0.1104]
[1728154495502,0.12274127,61881.0,61880.0,0.166958]
[1728154495907,0.07314274,61881.0,61880.0,0.166958]
[1728154497008,0.12274072,61881.0,61880.0,0.166958]
[1728154498801,0.28386765,61881.0,61880.0,0.166958]
[1728154499910,0.12273872,61881.0,61880.0,0.527758]
[1728154501211,0.28386765,61881.0,61880.0,0.527758]
[1728154501804,0.12273872,61881.0,61880.0,0.527758]
[1728154502018,0.28386765,61881.0,61880.0,0.527758]
[1728154502308,0.16112893,61881.0,61880.0,0.79513592]
[1728154502505,0.16112893,61881.0,61880.0,1.25407169]
[1728154503515,0.16112893,61881.0,61880.0,1.3669343]
[1728154503705,0.16112893,61881.0,61880.0,1.42278818]
[1728154504611,0.16112893,61881.0,61880.0,1.31278818]
[1728154504813,0.16112893,61881.0,61880.0,1.53587964]
[1728154505006,0.0004,61882.0,61880.0,1.31060515]
[1728154505204,0.0004,61882.0,61881.0,0.32433492]
[1728154506409,0.0014,61882.0,61881.0,0.32633492]
[1728154507413,0.0024,61882.0,61881.0,0.32633492]
[1728154509215,0.122775,61882.0,61881.0,0.058957]
[1728154510311,0.16355217,61882.0,61881.0,0.058957]
[1728154510506,0.28392717,61882.0,61881.0,0.058957]
[1728154512020,0.122775,61882.0,61881.0,0.058957]
[1728154512713,0.14742403,61882.0,61881.0,0.058957]
[1728154512918,0.122775,61882.0,61881.0,0.058957]
[1728154514213,0.07317932,61882.0,61881.0,0.058957]
[1728154516725,0.07317261,61882.0,61881.0,0.058957]
[1728154517118,0.0024,61882.0,61881.0,0.18043861]
[1728154517317,0.0024,61882.0,61881.0,1.26523861]
[1728154517629,0.0024,61882.0,61881.0,0.66523861]
[1728154518022,0.0024,61882.0,61881.0,0.76207372]
[1728154518543,0.0024,61882.0,61881.0,0.18043861]
[1728154521320,0.0024,61882.0,61881.0,0.54123861]
[1728154522129,0.0024,61882.0,61881.0,0.54129683]
[1728154526529,0.0024,61882.0,61881.0,0.54133575]
[1728154527423,0.0024,61882.0,61881.0,0.65133575]
[1728154531422,0.0024,61882.0,61881.0,0.2906076]
[1728154531723,0.0024,61882.0,61881.0,0.6514076]
[1728154532237,0.0024,61882.0,61881.0,0.529757]
[1728154532238,0.14746374,61882.0,61881.0,0.529757]
[1728154532926,0.17867378,61882.0,61881.0,0.529757]
[1728154533125,0.26783341,61882.0,61881.0,0.529757]
[1728154533333,0.12276967,61882.0,61881.0,0.529757]
[1728154535839,0.12276967,61882.0,61881.0,0.419757]
[1728154536032,0.12276967,61882.0,61881.0,0.529757]
[1728154536237,0.28392184,61882.0,61881.0,0.529757]
[1728154539233,0.16115217,61882.0,61881.0,0.96495559]
[1728154539938,0.16115217,61882.0,61881.0,0.85495559]
[1728154540145,0.21770817,61882.0,61881.0,0.6300264]
[1728154540936,0.21770817,61882.0,61881.0,0.63028006]
[1728154545646,0.056556,61882.0,61881.0,0.63028006]
[1728154545848,0.056556,61882.0,61881.0,0.63019753]
[1728154546243,0.056556,61882.0,61881.0,0.26939753]
[1728154547248,0.056556,61882.0,61881.0,0.0024]
[1728154547552,0.09612571,61882.0,61881.0,0.1124]
[1728154547743,0.17693651,61882.0,61881.0,0.1124]
[1728154549852,0.17693651,61882.0,61881.0,0.168957]
[1728154549853,0.12038051,61882.0,61881.0,0.168957]
[1728154551860,0.161167,61882.0,61881.0,0.168957]
[1728154552051,0.12038051,61882.0,61881.0,0.168957]
[1728154554253,0.17735857,61885.0,61884.0,0.056554]
[1728154554455,0.17735857,61885.0,61884.0,0.43342382]
[1728154554758,0.17735857,61885.0,61884.0,0.43382382]
[1728154555649,0.17835857,61885.0,61884.0,0.43582382]
[1728154555855,0.001,61885.0,61884.0,0.43582382]
[1728154556068,0.002,61885.0,61884.0,0.43582382]
[1728154559363,0.002,61885.0,61884.0,0.46511148]
[1728154561775,0.002,61885.0,61884.0,0.35511148]
[1728154561972,0.002,61885.0,61884.0,0.46511148]
[1728154562179,0.002,61885.0,61884.0,0.2790126]
[1728154565369,0.002,61885.0,61884.0,0.40061724]
[1728154566478,0.002,61885.0,61884.0,0.2790126]
[1728154567076,0.002,61885.0,61884.0,0.40061905]
[1728154567276,0.002,61885.0,61884.0,0.2790126]
[1728154569275,0.05159336,61885.0,61884.0,0.19824166]
[1728154569475,0.07277601,61885.0,61884.0,0.19824166]
[1728154569678,0.09115941,61885.0,61884.0,0.19824166]
[1728154569874,0.12236937,61885.0,61884.0,0.19824166]
[1728154573671,0.29966542,61885.0,61884.0,0.19824166]
[1728154574078,0.12236937,61885.0,61884.0,0.19824166]
[1728154574489,0.29966542,61885.0,61884.0,0.19824166]
[1728154574981,0.12236937,61885.0,61884.0,0.19824166]
[1728154575684,0.16317615,61885.0,61884.0,0.19824166]
[1728154575881,0.28354552,61885.0,61884.0,0.19824166]
[1728154577388,0.16117615,61885.0,61884.0,0.99335768]
[1728154582283,0.16117615,61885.0,61884.0,0.99197969]
[1728154584279,0.19238513,61885.0,61884.0,0.55904166]
[1728154586387,0.03120898,61885.0,61884.0,0.55904166]
[1728154587091,0.03120898,61885.0,61884.0,0.44904166]
[1728154587401,0.03120898,61885.0,61884.0,0.55904166]
[1728154591783,0.03120898,61885.0,61884.0,0.19824166]
[1728154591987,0.03120898,61885.0,61884.0,0.55904166]
[1728154592388,0.0004,61887.0,61886.0,0.056552]
[1728154592601,0.0004,61887.0,61886.0,0.32239442]
[1728154593198,0.0004,61887.0,61886.0,0.32238179]
[1728154593589,0.0014,61887.0,61886.0,0.32338179]
[1728154594200,0.0024,61887.0,61886.0,0.32638179]
[1728154595199,0.0024,61887.0,61886.0,0.68718179]
[1728154599195,0.0189248,61893.0,61886.0,0.63062979]
[1728154599397,0.12036465,61892.0,61891.0,0.11]
[1728154601607,0.12136465,61892.0,61891.0,0.113]
[1728154601803,0.12136465,61892.0,61891.0,0.169548]
[1728154602105,0.12136465,61892.0,61891.0,0.171548]
[1728154602106,0.12236465,61892.0,61891.0,0.171548]
[1728154603098,0.17928975,61892.0,61891.0,0.171548]
[1728154603294,0.2996544,61892.0,61891.0,0.171548]
[1728154604404,0.12236465,61892.0,61891.0,0.171548]
[1728154604904,0.12236465,61892.0,61891.0,0.20105261]
[1728154606307,0.17951939,61892.0,61891.0,0.20105261]
[1728154606501,0.12236465,61892.0,61891.0,0.20105261]
[1728154607416,0.002,61892.0,61891.0,0.32191777]
[1728154607913,0.002,61892.0,61891.0,0.32191789]
[1728154608312,0.14524118,61915.0,61891.0,0.37691789]
[1728154608608,0.542,61941.0,61891.0,0.37691789]
[1728154608609,0.0087,61947.0,61931.0,0.056511]
[1728154608804,0.0004,61958.0,61930.0,0.11]
[1728154608805,0.0623,61931.0,61930.0,0.11]
[1728154609114,0.0623,61931.0,61930.0,0.20382191]
[1728154609115,0.0627,61931.0,61930.0,0.20382191]
[1728154609307,0.0627,61931.0,61929.0,0.11]
[1728154609605,0.0004,61930.0,61929.0,0.11]
[1728154610006,0.0004,61930.0,61929.0,0.31352746]
[1728154610201,0.0004,61930.0,61929.0,0.11]
[1728154611105,0.0004,61930.0,61929.0,0.117]
[1728154611303,0.0004,61930.0,61929.0,0.007]
[1728154611613,0.0004,61930.0,61922.0,0.06421707]
[1728154611808,0.0004,61930.0,61924.0,0.11]
[1728154612010,0.0004,61930.0,61929.0,0.008]
[1728154612011,0.0014,61930.0,61929.0,0.008]
[1728154612211,0.0324,61930.0,61929.0,0.008]
[1728154612804,0.0314,61930.0,61922.0,0.01]
[1728154613005,0.0314,61930.0,61922.0,0.066519]
[1728154613006,0.0004,61923.0,61922.0,0.066519]
[1728154613500,0.0004,61923.0,61922.0,0.080519]
[1728154613705,0.0004,61923.0,61922.0,0.070519]
[1728154614112,0.0014,61923.0,61922.0,0.070519]
[1728154615206,0.0014,61923.0,61922.0,0.084519]
[1728154615207,0.0024,61923.0,61922.0,0.084519]
[1728154620918,0.0024,61923.0,61922.0,0.806119]
[1728154622922,0.0024,61923.0,61922.0,0.084519]
[1728154623325,0.0024,61923.0,61922.0,0.806119]
[1728154623922,0.0024,61923.0,61922.0,0.916119]
[1728154628548,0.0024,61923.0,61922.0,0.806119]
[1728154632441,0.0024,61923.0,61922.0,0.916119]
[1728154632643,0.0004,61930.0,61929.0,0.056513]
[1728154632842,0.0004,61930.0,61929.0,0.166913]
[1728154633951,0.0014,61930.0,61929.0,0.174913]
[1728154634345,0.0014,61930.0,61929.0,0.181913]
[1728154634648,0.0024,61930.0,61929.0,0.181913]
[1728154634843,0.0024,61930.0,61929.0,0.215213]
[1728154637848,0.09149552,61930.0,61929.0,0.215213]
[1728154638752,0.25276999,61930.0,61929.0,0.215213]
[1728154639947,0.09149552,61930.0,61929.0,0.215213]
[1728154640147,0.16366726,61930.0,61929.0,0.215213]
[1728154640342,0.09149552,61930.0,61929.0,0.215213]
[1728154642454,0.09149552,61930.0,61929.0,0.936813]
[1728154642651,0.25276278,61930.0,61929.0,0.936813]
[1728154643361,0.09149552,61930.0,61929.0,0.936813]
[1728154644556,0.0024,61930.0,61929.0,1.00122269]
[1728154645153,0.0024,61930.0,61929.0,0.936813]
[1728154645350,0.0024,61930.0,61929.0,1.00134327]
[1728154645546,0.0024,61930.0,61929.0,0.80153027]
[1728154646061,0.058912,61930.0,61929.0,0.737]
[1728154647555,0.871012,61930.0,61929.0,0.737]
[1728154649253,1.355452,61930.0,61929.0,0.737]
[1728154649453,1.955452,61930.0,61929.0,0.737]
[1728154652459,2.10247716,61930.0,61929.0,0.737]
[1728154652853,1.01803716,61930.0,61929.0,0.737]
[1728154656665,1.01803716,61930.0,61929.0,0.3762]
[1728154659461,0.871012,61930.0,61929.0,0.3762]
[1728154660458,0.871012,61930.0,61929.0,0.0154]